bitfinex/quotes_BTCUSD_20250829
["timestamp","ask_amount","ask_price","bid_price","bid_amount"]
[1756476288148,1.79876897,109250.0,109240.0,0.00162295]
[1756476288340,1.84782998,109250.0,109240.0,0.00162295]
[1756476288986,1.84159236,109250.0,109240.0,0.00162295]
[1756476289197,1.80500524,109250.0,109240.0,0.00162295]
[1756476289401,1.79566897,109250.0,109240.0,0.00162295]
[1756476289817,1.79881897,109250.0,109240.0,0.00162295]
[1756476290232,1.84787795,109250.0,109240.0,0.00162295]
[1756476290654,1.85387795,109250.0,109240.0,0.00162295]
[1756476291256,1.85987795,109250.0,109240.0,0.00162295]
[1756476291409,1.85387795,109250.0,109240.0,0.00162295]
[1756476291752,1.96911309,109250.0,109240.0,0.00162295]
[1756476291960,6.96311309,109250.0,109240.0,1e-08]
[1756476292163,7.23315309,109250.0,109240.0,1e-08]
[1756476292381,0.2040387,109230.0,109220.0,1e-08]
[1756476292605,0.52316695,109190.0,109180.0,0.0721143]
[1756476292807,0.62366119,109190.0,109180.0,0.0721143]
[1756476293009,1.86719714,109190.0,109180.0,0.0721143]
[1756476293422,0.5232003,109180.0,109150.0,0.2647099]
[1756476293561,0.18320051,109170.0,109150.0,0.35598622]
[1756476293761,1.42882812,109160.0,109150.0,0.07279001]
[1756476293964,1.93268444,109160.0,109150.0,0.00067571]
[1756476294175,1.65971227,109160.0,109150.0,0.00067571]
[1756476294379,1.84493956,109160.0,109150.0,0.00067571]
[1756476294671,1.84178956,109160.0,109150.0,0.00067571]
[1756476294876,0.41095144,109160.0,109150.0,0.18390979]
[1756476295115,1.65656227,109160.0,109150.0,0.18390979]
[1756476295346,0.59416873,109160.0,109150.0,0.00067571]
[1756476295493,0.59617873,109160.0,109150.0,0.00067571]
[1756476295694,1.84493956,109160.0,109150.0,0.00067571]
[1756476295905,0.59617873,109160.0,109150.0,0.00067571]
[1756476296107,0.08697818,109160.0,109150.0,0.18390979]
[1756476296293,1.5158063,109160.0,109150.0,0.00067571]
[1756476296495,1.5158063,109160.0,109150.0,0.18390979]
[1756476296496,0.08697818,109160.0,109150.0,0.18390979]
[1756476296741,1.5158063,109160.0,109150.0,0.00467571]
[1756476296944,1.5168063,109160.0,109150.0,0.00467571]
[1756476297182,1.5219663,109160.0,109150.0,0.00467571]
[1756476297386,1.99685971,109160.0,109150.0,0.00467571]
[1756476297544,2.01879853,109160.0,109150.0,0.01167571]
[1756476297763,0.7721877,109160.0,109150.0,0.00767571]
[1756476297969,2.02604496,109160.0,109150.0,0.00767571]
[1756476298168,5.78134861,109160.0,109150.0,0.01367571]
[1756476298368,1.90847789,109160.0,109150.0,0.00667571]
[1756476298560,1.92941671,109160.0,109150.0,0.00667571]
[1756476298946,1.90847789,109160.0,109150.0,0.00667571]
[1756476299742,6.92941671,109160.0,109150.0,0.00667571]
[1756476299959,1.99382491,109160.0,109150.0,0.00667571]
[1756476300156,1.99382491,109160.0,109150.0,0.00067571]
[1756476300157,1.90747789,109160.0,109150.0,0.00067571]
[1756476300581,1.83978373,109150.0,109140.0,1e-08]
[1756476300784,0.54418969,109140.0,109130.0,1e-08]
[1756476301006,6.85885973,109140.0,109130.0,1e-08]
[1756476301184,1.85571973,109140.0,109130.0,0.00014259]
[1756476301384,1.83478091,109140.0,109130.0,0.00014259]
[1756476301639,1.92621723,109140.0,109130.0,0.00014259]
[1756476301821,1.94715605,109140.0,109130.0,0.00014259]
[1756476302030,0.59819573,109140.0,109130.0,0.00014259]
[1756476302239,0.60133573,109140.0,109130.0,0.00014259]
[1756476302440,1.84694656,109140.0,109130.0,0.00014259]
[1756476302659,0.36551833,109140.0,109130.0,0.00515259]
[1756476302869,1.78734438,109140.0,109130.0,0.00014259]
[1756476303066,1.78734438,109140.0,109130.0,0.00014258]
[1756476303277,0.53974355,109140.0,109130.0,0.00014258]
[1756476303491,1.44734438,109140.0,109130.0,0.00014258]
[1756476303769,5.66460784,109140.0,109130.0,0.00014258]
[1756476303977,6.91112892,109140.0,109130.0,0.00414258]
[1756476304254,6.93206774,109140.0,109130.0,0.00414258]
[1756476304452,6.94641223,109140.0,109130.0,0.00414258]
[1756476304632,6.87097447,109140.0,109130.0,0.00414258]
[1756476304843,6.87411447,109140.0,109130.0,0.00414258]
[1756476305242,6.85003565,109140.0,109130.0,0.00414258]
[1756476305420,0.24809033,109140.0,109130.0,0.00414258]
[1756476305633,0.01740293,109140.0,109130.0,0.19242024]
[1756476305834,0.01740293,109140.0,109130.0,0.28071656]
[1756476306285,0.001,109140.0,109130.0,0.28071656]
[1756476307112,0.26447378,109180.0,109150.0,0.18323408]
[1756476307343,1.42881134,109170.0,109160.0,0.09356653]
[1756476307561,1.2620076,109170.0,109160.0,0.27652361]
[1756476307791,0.01639677,109170.0,109160.0,0.27552361]
[1756476308013,0.18316695,109190.0,109170.0,0.18319963]
[1756476308229,1.45433892,109190.0,109160.0,0.18321729]
[1756476308481,1.42881134,109170.0,109150.0,0.18323408]
[1756476308714,1.42882812,109160.0,109150.0,0.005]
[1756476308916,1.44722092,109160.0,109150.0,0.005]
[1756476309140,1.44523092,109160.0,109150.0,0.005]
[1756476309387,0.19962009,109160.0,109150.0,0.00514258]
[1756476309605,1.44523092,109160.0,109150.0,0.00298]
[1756476310038,0.1832402,109150.0,109130.0,0.18624766]
[1756476310248,0.18325087,109140.0,109130.0,0.27454398]
[1756476310462,0.19965367,109140.0,109130.0,0.27454398]
[1756476310672,0.19965367,109140.0,109130.0,0.09127632]
[1756476310891,1.4452645,109140.0,109130.0,0.08829632]
[1756476311121,0.18327672,109130.0,109110.0,0.19536508]
[1756476311291,1.44529035,109130.0,109120.0,0.27158077]
[1756476311548,0.0164028,109130.0,109120.0,0.27456077]
[1756476311764,0.2711877,109140.0,109120.0,0.27456077]
[1756476312050,0.2711877,109140.0,109130.0,0.1885385]
[1756476312051,0.01745192,109140.0,109130.0,0.1885385]
[1756476312272,0.01745192,109140.0,109130.0,0.27454398]
[1756476312478,1.50391269,109140.0,109100.0,0.06937195]
[1756476312685,1.24561083,109130.0,109120.0,0.18326963]
[1756476312884,1.44533041,109130.0,109120.0,0.08829632]
[1756476313131,0.01745192,109130.0,109120.0,0.19128445]
[1756476313336,1.44633041,109130.0,109120.0,0.09629632]
[1756476313562,1.26306275,109130.0,109120.0,0.19629445]
[1756476313751,1.44635524,109130.0,109120.0,0.008]
[1756476313962,1.52196524,109130.0,109120.0,0.008]
[1756476314169,1.91082162,109130.0,109120.0,0.008]
[1756476314377,0.18330125,109110.0,109100.0,0.06639195]
[1756476314590,1.44538509,109110.0,109100.0,0.06639195]
[1756476315208,0.01647301,109110.0,109100.0,0.25269]
[1756476315421,0.01647301,109110.0,109100.0,0.34098632]
[1756476315629,1.33359747,109130.0,109120.0,0.18328445]
[1756476315850,0.01650679,109130.0,109120.0,0.27456077]
[1756476316054,0.01325679,109130.0,109120.0,0.27456077]
[1756476316248,0.0001431,109130.0,109120.0,0.27356077]
[1756476316652,0.0001431,109130.0,109120.0,0.67356077]
[1756476317092,0.0011431,109130.0,109120.0,0.67756077]
[1756476317321,1.24675393,109130.0,109120.0,0.27756077]
[1756476317653,1.43102159,109130.0,109120.0,0.10229632]
[1756476317864,0.0021431,109130.0,109120.0,0.28856077]
[1756476318249,0.0021431,109130.0,109120.0,0.29059077]
[1756476319034,1.42902159,109130.0,109120.0,0.08829632]
[1756476319254,1.42902159,109130.0,109110.0,0.18330125]
[1756476319465,1.24561083,109120.0,109110.0,0.27467757]
[1756476319705,1.33390715,109120.0,109100.0,0.24970827]
[1756476319938,1.24561083,109110.0,109100.0,0.34108459]
[1756476320145,1.24561083,109110.0,109100.0,0.33800459]
[1756476320359,0.19257414,109130.0,109110.0,0.18330125]
[1756476320570,0.00943905,109130.0,109120.0,0.19228445]
[1756476320776,0.18441076,109130.0,109120.0,0.09729632]
[1756476321015,1.43002159,109130.0,109120.0,0.28058077]
[1756476321230,0.0011431,109130.0,109120.0,0.28366077]
[1756476321642,1.24675393,109130.0,109120.0,0.28366077]
[1756476321854,1.24675393,109130.0,109120.0,0.28058077]
[1756476322279,0.0011431,109130.0,109120.0,0.28366077]
[1756476322488,0.0011431,109130.0,109120.0,0.36607959]
[1756476322690,0.25536368,109170.0,109150.0,0.18323408]
[1756476322691,1.50092567,109170.0,109150.0,0.18323408]
[1756476322898,1.51561746,109170.0,109160.0,0.08829632]
[1756476323103,0.18324046,109150.0,109130.0,0.19548252]
[1756476323307,0.19155426,109150.0,109140.0,0.27154719]
[1756476323515,0.00832018,109150.0,109140.0,0.27462719]
[1756476323737,1.43716509,109150.0,109140.0,0.08829632]
[1756476323968,0.18326447,109140.0,109130.0,0.18326766]
[1756476324181,0.19158465,109140.0,109130.0,0.27156398]
[1756476324402,1.43719548,109140.0,109130.0,0.08829632]
[1756476324617,0.18326766,109130.0,109120.0,0.011]
[1756476324838,1.44662621,109130.0,109120.0,0.011]
[1756476325050,0.01455772,109130.0,109120.0,0.19428445]
[1756476325223,1.26016855,109130.0,109120.0,0.19428445]
[1756476325438,0.19782538,109130.0,109120.0,0.08829632]
[1756476325644,0.19782653,109130.0,109120.0,0.08829632]
[1756476325766,0.19782653,109130.0,109110.0,0.18330125]
[1756476325970,0.19782653,109130.0,109110.0,0.2720727]
[1756476325971,1.42889528,109120.0,109110.0,0.2720727]
[1756476326165,0.18326447,109140.0,109110.0,0.28123776]
[1756476326371,0.01455729,109140.0,109130.0,0.18326766]
[1756476326732,0.19156924,109140.0,109130.0,0.08829632]
[1756476326935,0.19156924,109140.0,109130.0,0.27156398]
[1756476326936,1.2539292,109140.0,109130.0,0.27156398]
[1756476327176,1.43718007,109140.0,109130.0,0.08829632]
[1756476327452,0.19156924,109140.0,109130.0,0.27156398]
[1756476327677,0.00831837,109140.0,109130.0,0.27464398]
[1756476327882,1.42882812,109160.0,109150.0,0.05]
[1756476327999,0.18323408,109150.0,109140.0,0.05]
[1756476328209,1.43508523,109150.0,109140.0,0.05]
[1756476328406,0.18325087,109140.0,109130.0,0.05]
[1756476328686,0.18326766,109130.0,109120.0,0.05]
[1756476328863,0.18326766,109130.0,109120.0,0.23328445]
[1756476328864,1.42887849,109130.0,109120.0,0.23328445]
[1756476329099,0.18326766,109130.0,109120.0,0.23328445]
[1756476329304,0.25373087,109140.0,109120.0,0.23328445]
[1756476329305,0.07048,109140.0,109130.0,0.05]
[1756476329510,1.42884901,109150.0,109140.0,0.05]
[1756476329702,1.25185086,109150.0,109140.0,0.23325087]
[1756476329906,0.00624003,109150.0,109140.0,0.32462719]
[1756476330120,1.42882812,109160.0,109150.0,0.05]
[1756476330301,1.43506837,109160.0,109150.0,0.05]
[1756476330497,0.18323408,109150.0,109140.0,0.05]
[1756476330717,1.43508516,109150.0,109140.0,0.05]
[1756476331139,0.18947433,109150.0,109140.0,0.05]
[1756476331344,1.43508516,109150.0,109140.0,0.05]
[1756476331701,1.43827516,109150.0,109140.0,0.05]
[1756476331934,0.18326766,109130.0,109120.0,0.05]
[1756476332312,0.18330125,109110.0,109100.0,0.29971]
[1756476332597,1.42891208,109110.0,109100.0,0.38800632]
[1756476332809,1.42889528,109120.0,109110.0,0.23329497]
[1756476333003,0.18330125,109110.0,109100.0,0.11639195]
[1756476333132,1.43515079,109110.0,109100.0,0.11639195]
[1756476333532,1.84566282,109110.0,109100.0,0.06639195]
[1756476334149,1.84566282,109110.0,109100.0,0.06686708]
[1756476334373,1.93395914,109110.0,109100.0,0.06686708]
[1756476334569,1.95489796,109110.0,109100.0,0.06686708]
[1756476334829,0.54425687,109100.0,109090.0,1e-08]
[1756476335093,0.54425687,109100.0,109010.0,0.37058459]
[1756476335094,0.37604588,109020.0,109010.0,0.37058459]
[1756476335237,0.37604588,109020.0,109010.0,0.45888091]
[1756476335586,0.37604588,109020.0,109010.0,0.85888091]
[1756476335715,0.37604588,109020.0,109010.0,0.78984661]
[1756476336068,0.37604588,109020.0,109010.0,0.38984661]
[1756476336305,0.37604588,109020.0,109010.0,0.72984661]
[1756476336505,0.37604588,109020.0,109010.0,2.04939626]
[1756476336706,0.37652344,109020.0,109010.0,0.87589973]
[1756476336907,0.26303025,109090.0,109050.0,0.1834021]
[1756476337036,1.24561083,109060.0,109050.0,0.27169713]
[1756476337241,0.18335239,109080.0,109060.0,0.18337609]
[1756476337496,1.24561083,109070.0,109060.0,0.18337609]
[1756476337835,0.07048,109090.0,109080.0,0.18335166]
[1756476338047,1.44551085,109090.0,109070.0,0.18336847]
[1756476338290,0.01656516,109090.0,109080.0,0.18349476]
[1756476338534,0.01656516,109090.0,109080.0,0.27487108]
[1756476338754,0.2,109100.0,109090.0,0.18333486]
[1756476338985,0.21657097,109100.0,109080.0,0.0001431]
[1756476339190,0.18333486,109090.0,109080.0,0.27179075]
[1756476339396,0.01657097,109090.0,109080.0,0.27179108]
[1756476339599,0.01657097,109090.0,109080.0,0.27487108]
[1756476339916,1.2621818,109090.0,109080.0,0.27179108]
[1756476340542,1.44551666,109090.0,109080.0,0.0001431]
[1756476340745,0.01657097,109090.0,109080.0,0.0001431]
[1756476340946,0.01657097,109090.0,109080.0,0.18349476]
[1756476341168,1.2621818,109090.0,109080.0,0.18349476]
[1756476341371,0.01657097,109090.0,109080.0,0.18349476]
[1756476341569,1.44751666,109090.0,109080.0,0.0001431]
[1756476341773,0.21337626,109090.0,109080.0,0.0001431]
[1756476341975,1.44751666,109090.0,109080.0,0.0001431]
[1756476342178,1.51052328,109090.0,109080.0,0.0001431]
[1756476342378,1.50533328,109090.0,109080.0,0.0001431]
[1756476342677,1.50852192,109090.0,109080.0,0.0001431]
[1756476342882,1.51472961,109090.0,109080.0,0.0001431]
[1756476343088,1.94302593,109090.0,109080.0,0.0001431]
[1756476343291,7.01396475,109090.0,109080.0,0.0001431]
[1756476343500,0.1834158,109050.0,109030.0,0.0721143]
[1756476343705,1.24561083,109040.0,109030.0,0.0721143]
[1756476343940,0.07052,109050.0,109030.0,0.25863005]
[1756476344147,0.07052,109050.0,109040.0,0.18649892]
[1756476344148,0.08706147,109050.0,109040.0,0.18649892]
[1756476344320,1.5160744,109050.0,109030.0,0.16041062]
[1756476344521,1.42902975,109040.0,109010.0,0.38279027]
[1756476344661,0.27963367,109050.0,109020.0,0.27482856]
[1756476344662,1.24561083,109030.0,109020.0,0.27482856]
[1756476344864,0.18342085,109040.0,109020.0,0.27174608]
[1756476345089,0.1999485,109040.0,109030.0,0.005]
[1756476345292,0.22669396,109040.0,109030.0,0.005]
[1756476345555,0.1999485,109040.0,109030.0,0.005]
[1756476345897,0.01652958,109040.0,109030.0,0.19151575]
[1756476346099,1.26214041,109040.0,109030.0,0.005]
[1756476346300,0.18345257,109020.0,109010.0,0.11500089]
[1756476346510,1.4290634,109020.0,109010.0,0.11500089]
[1756476346710,0.20315029,109020.0,109010.0,0.11500089]
[1756476346935,1.44876112,109020.0,109010.0,0.11500089]
[1756476347139,1.44557112,109020.0,109010.0,0.11500089]
[1756476347337,0.01650772,109020.0,109010.0,0.29847029]
[1756476347503,1.26211855,109020.0,109010.0,0.29847029]
[1756476347718,1.44557112,109020.0,109010.0,0.11500089]
[1756476347923,0.01650772,109020.0,109010.0,0.11500089]
[1756476348124,0.22700674,109020.0,109010.0,0.11500089]
[1756476348433,1.50521475,109020.0,109010.0,0.11700089]
[1756476348606,0.1834694,109010.0,109000.0,0.20481389]
[1756476348806,0.5286594,109010.0,109000.0,0.18696397]
[1756476349073,0.18354314,108970.0,108940.0,0.13121197]
[1756476349317,0.19271909,108980.0,108960.0,0.00196]
[1756476349514,0.26319822,108990.0,108960.0,0.27380974]
[1756476349716,0.08697504,108990.0,108970.0,0.18353605]
[1756476349943,0.08697504,108990.0,108980.0,0.18547991]
[1756476350165,0.0706631,108990.0,108980.0,0.27377623]
[1756476350368,0.07772941,108990.0,108950.0,0.19274761]
[1756476350545,0.25416617,108990.0,108980.0,0.00196]
[1756476350741,0.0706631,108990.0,108980.0,0.00196]
[1756476350880,0.0706631,108990.0,108980.0,0.18547991]
[1756476351081,0.0001431,108990.0,108980.0,0.52841991]
[1756476351283,0.0721143,109040.0,109030.0,0.18343575]
[1756476351284,0.1426343,109040.0,109030.0,0.18343575]
[1756476351510,0.1426343,109040.0,109000.0,0.19262623]
[1756476351511,0.18343683,109030.0,109000.0,0.19262623]
[1756476351718,0.18345899,109020.0,108990.0,0.67521656]
[1756476351923,1.24561083,109000.0,108980.0,0.18351977]
[1756476352121,1.43218723,108990.0,108970.0,0.18353593]
[1756476352328,0.18352001,108980.0,108960.0,0.18355296]
[1756476352534,1.42913114,108980.0,108960.0,0.00294]
[1756476352780,0.1835064,108990.0,108960.0,0.2747872]
[1756476352781,0.19268155,108990.0,108960.0,0.2747872]
[1756476352990,0.05616318,108990.0,108970.0,0.18353575]
[1756476353204,1.24561083,109000.0,108980.0,0.18645991]
[1756476353405,1.42911398,108990.0,108950.0,0.19274103]
[1756476353641,0.18351997,108980.0,108960.0,0.09353073]
[1756476353905,0.19266131,109000.0,108970.0,0.1864767]
[1756476354173,1.24561083,109000.0,108980.0,0.18351963]
[1756476354411,0.18350555,108990.0,108960.0,0.19320731]
[1756476354652,0.05553172,109000.0,108970.0,0.18646854]
[1756476354884,0.18348708,109000.0,108980.0,0.18351889]
[1756476355117,0.18348789,109000.0,108980.0,0.27475623]
[1756476355371,0.18350307,108990.0,108970.0,0.18353638]
[1756476355592,0.18353675,108970.0,108960.0,0.00147756]
[1756476355803,0.25714991,108980.0,108960.0,0.18503056]
[1756476356009,0.25714991,108980.0,108960.0,0.00147756]
[1756476356010,1.43221758,108970.0,108960.0,0.00147756]
[1756476356267,0.25407991,108980.0,108960.0,0.18503115]
[1756476356467,0.18660675,108970.0,108960.0,0.00147756]
[1756476356616,0.20301728,108970.0,108960.0,0.00147756]
[1756476357029,0.01641053,108970.0,108960.0,0.00147756]
[1756476357428,1.44862811,108970.0,108960.0,0.00147756]
[1756476357651,1.50521238,108970.0,108960.0,0.00147756]
[1756476357944,0.34789787,108970.0,108960.0,0.00047756]
[1756476358182,0.69003787,108970.0,108960.0,0.00047756]
[1756476358415,1.9356487,108970.0,108960.0,0.00047756]
[1756476358659,0.69003787,108970.0,108960.0,0.00047756]
[1756476358933,0.74003787,108970.0,108960.0,0.00047756]
[1756476359186,0.67362734,108970.0,108960.0,0.00052756]
[1756476359399,1.98564389,108970.0,108960.0,0.00052756]
[1756476359623,0.18358729,108940.0,108920.0,0.74158957]
[1756476359861,0.53276581,108950.0,108920.0,0.74158902]
[1756476360066,0.1999661,108950.0,108920.0,0.74158902]
[1756476360275,1.42921497,108930.0,108920.0,0.55796913]
[1756476360512,0.18571414,108930.0,108920.0,0.55796913]
[1756476360679,0.27057141,108930.0,108920.0,0.55796913]
[1756476360833,0.13238323,108930.0,108920.0,0.56286913]
[1756476361036,0.05784794,108950.0,108930.0,0.18360217]
[1756476361247,0.074257,108950.0,108940.0,0.18848729]
[1756476361714,1.30345877,108950.0,108940.0,0.18848729]
[1756476361921,0.07426469,108950.0,108940.0,0.0049]
[1756476362048,0.25831328,108950.0,108940.0,0.0049]
[1756476362405,0.20046534,108950.0,108940.0,0.0049]
[1756476362606,1.44607617,108950.0,108940.0,0.0049]
[1756476363070,1.78907617,108950.0,108940.0,0.0049]
[1756476363299,0.54346534,108950.0,108940.0,0.0049]
[1756476363745,6.78907617,108950.0,108940.0,0.0049]
[1756476363953,5.6891883,108950.0,108940.0,0.0049]
[1756476364154,6.93479913,108950.0,108940.0,0.0049]
[1756476364362,5.6891883,108950.0,108940.0,0.0049]
[1756476364566,6.93479913,108950.0,108940.0,0.0049]
[1756476364772,6.93479913,108950.0,108920.0,0.55796913]
[1756476364773,0.18360414,108930.0,108920.0,0.55796913]
[1756476364988,0.25829021,108930.0,108920.0,0.55796913]
[1756476365160,1.50390104,108930.0,108920.0,0.55796913]
[1756476365452,0.01641675,108930.0,108920.0,0.55796913]
[1756476365672,1.42921497,108930.0,108920.0,0.55796913]
[1756476365893,0.52360414,108930.0,108920.0,0.55796913]
[1756476366102,0.53280205,108920.0,108890.0,0.1204229]
[1756476366304,0.18367159,108890.0,108880.0,0.10380923]
[1756476366511,0.34256791,108890.0,108880.0,0.10380923]
[1756476366727,6.88933863,108890.0,108880.0,0.10380923]
[1756476366949,0.26645116,108820.0,108790.0,0.01911814]
[1756476367161,0.26645116,108820.0,108810.0,0.27210295]
[1756476367369,0.26645116,108820.0,108810.0,0.34421725]
[1756476367577,0.26645116,108820.0,108810.0,0.27210295]
[1756476367786,0.26645116,108820.0,108810.0,0.26710295]
[1756476367991,0.26645116,108820.0,108810.0,1.51271378]
[1756476368207,0.1427143,108890.0,108870.0,0.18370417]
[1756476368420,0.20288079,108890.0,108880.0,0.18368846]
[1756476368655,0.22542838,108900.0,108890.0,0.18367159]
[1756476368656,0.00478838,108900.0,108890.0,0.18367159]
[1756476368897,0.00478838,108900.0,108880.0,0.18368846]
[1756476369119,0.00478838,108900.0,108890.0,0.2732638]
[1756476369360,0.00478838,108900.0,108890.0,0.27096791]
[1756476369591,0.0706,108950.0,108940.0,0.18358729]
[1756476369801,0.25417063,108950.0,108910.0,0.19278174]
[1756476370008,1.24561083,108940.0,108920.0,0.28338971]
[1756476370221,0.00478838,108950.0,108940.0,0.18358729]
[1756476370674,0.00478838,108950.0,108940.0,0.27188361]
[1756476370878,0.18350477,108990.0,108960.0,0.18355117]
[1756476371089,0.19267992,108990.0,108960.0,0.27184772]
[1756476371301,0.25412866,109010.0,108980.0,0.18351631]
[1756476371509,0.07880929,109010.0,109000.0,0.18348623]
[1756476371736,0.08496102,109040.0,109020.0,0.18345215]
[1756476371945,0.2714026,109040.0,109000.0,0.22673608]
[1756476372146,0.2714026,109040.0,109010.0,0.27405797]
[1756476372372,0.2714026,109040.0,109010.0,0.27176461]
[1756476372606,0.00821218,109040.0,109030.0,0.18343575]
[1756476372841,0.0706,109070.0,109060.0,0.18338529]
[1756476373149,0.0082224,109070.0,109060.0,0.27168161]
[1756476373371,0.0082224,109070.0,109060.0,0.26768161]
[1756476373571,0.0082224,109070.0,109040.0,0.19256787]
[1756476373774,0.0082224,109070.0,109060.0,0.27168161]
[1756476374195,0.00055102,109080.0,109070.0,0.18336847]
[1756476374408,0.00876799,109080.0,109070.0,0.27166479]
[1756476374654,0.00876799,109080.0,109070.0,0.08829632]
[1756476374883,0.00876799,109080.0,109040.0,0.19258673]
[1756476375111,0.246128,109070.0,109030.0,0.003]
[1756476375325,0.18340422,109050.0,109030.0,0.003]
[1756476375533,0.25401892,109040.0,109030.0,0.003]
[1756476375757,0.07881697,109040.0,109030.0,0.18643575]
[1756476375965,0.0706,109070.0,109040.0,0.19257199]
[1756476376190,0.07881133,109070.0,109050.0,0.00229252]
[1756476376389,0.07881133,109070.0,109030.0,0.27173152]
[1756476376594,0.00821133,109070.0,109060.0,0.18338529]
[1756476376822,0.00821133,109070.0,109060.0,0.27168161]
[1756476377060,0.00202977,109080.0,109070.0,0.18336847]
[1756476377272,0.00202977,109080.0,109070.0,0.54430729]
[1756476377479,0.00155102,109080.0,109070.0,0.57683423]
[1756476377693,0.00155102,109080.0,109070.0,0.27166479]
[1756476378159,0.0107186,109080.0,109040.0,0.19558978]
[1756476378372,0.00047845,109070.0,109050.0,0.1834018]
[1756476378577,0.00047845,109070.0,109060.0,0.18338529]
[1756476378790,0.00047845,109070.0,109060.0,0.63262043]
[1756476379022,0.00055102,109080.0,109070.0,0.20430729]
[1756476379226,0.00155102,109080.0,109070.0,0.27966479]
[1756476379433,0.00169449,109080.0,109070.0,0.27966479]
[1756476379612,0.00069449,109080.0,109060.0,0.18338529]
[1756476379851,0.00069449,109080.0,109050.0,0.1834018]
[1756476380070,0.07125449,109080.0,109050.0,0.08829632]
[1756476380274,0.18338793,109060.0,109030.0,0.19260698]
[1756476380482,0.19255719,109060.0,109020.0,0.1833927]
[1756476380743,0.18341901,109040.0,109020.0,0.1833927]
[1756476380959,0.18338561,109060.0,109040.0,0.18341775]
[1756476381168,0.41309738,109070.0,109050.0,0.1894021]
[1756476381169,0.22056,109070.0,109050.0,0.1894021]
[1756476381381,0.22056,109070.0,109060.0,0.18338529]
[1756476381589,0.07125449,109080.0,109070.0,0.18336847]
[1756476381805,0.07125449,109080.0,109070.0,0.27166479]
[1756476382241,0.07125449,109080.0,109060.0,0.18338499]
[1756476382459,0.25460615,109080.0,109060.0,0.1833849]
[1756476382731,0.18338529,109060.0,109040.0,0.18641775]
[1756476382949,0.24570574,109070.0,109040.0,0.18641527]
[1756476383180,0.18338529,109060.0,109040.0,0.18641527]
[1756476383388,0.1834021,109050.0,109040.0,0.003]
[1756476383600,1.77755893,109050.0,109040.0,0.003]
[1756476383807,6.83177677,109050.0,109040.0,0.003]
[1756476384030,1.83177677,109050.0,109040.0,0.003]
[1756476384225,0.57761994,109050.0,109040.0,0.003]
[1756476384467,0.66591626,109050.0,109040.0,0.003]
[1756476384693,0.18345226,109030.0,109010.0,0.18346907]
[1756476384905,0.34,109040.0,109030.0,0.18343518]
[1756476385113,0.34,109040.0,109000.0,0.19256207]
[1756476385114,1.50138508,109040.0,109000.0,0.19256207]
[1756476385320,0.07056,109030.0,109020.0,0.18345237]
[1756476385523,0.07056,109030.0,109010.0,0.18346932]
[1756476385738,0.18345545,109020.0,108990.0,0.18344754]
[1756476385947,1.60324523,109030.0,109010.0,0.18346787]
[1756476386169,0.07056,109030.0,109020.0,0.18345257]
[1756476386607,0.26311591,109060.0,109020.0,0.27174758]
[1756476386817,0.26311591,109060.0,108990.0,0.19262269]
[1756476386818,0.19259039,109040.0,108990.0,0.19262269]
[1756476387041,0.18345899,109020.0,109000.0,0.18348079]
[1756476387252,1.59415683,109040.0,109010.0,0.18346739]
[1756476387461,0.57786385,109050.0,109020.0,0.19262453]
[1756476387673,0.23783085,109050.0,109030.0,0.18343575]
[1756476387881,0.001,109030.0,109020.0,0.19262453]
[1756476388087,0.001,109030.0,109020.0,0.18345257]
[1756476388292,0.18443575,109030.0,109010.0,0.18346739]
[1756476388602,0.18443575,109030.0,109000.0,0.1926551]
[1756476388829,0.18345276,109020.0,108990.0,0.00047845]
[1756476389032,0.24908721,109030.0,109010.0,0.18346876]
[1756476389236,0.24908721,109030.0,109000.0,0.18348324]
[1756476389237,0.18345257,109020.0,109000.0,0.18348494]
[1756476389447,0.1834694,109010.0,108990.0,0.00047845]
[1756476389681,0.19262519,109020.0,108990.0,0.18397974]
[1756476389919,0.24852563,109020.0,109000.0,0.18348623]
[1756476390165,0.001,109030.0,109020.0,0.18345257]
[1756476390379,0.001,109030.0,109010.0,0.08829632]
[1756476390582,0.18443676,109030.0,109010.0,0.18346893]
[1756476390784,0.001,109030.0,109020.0,0.18345257]
[1756476390995,0.001,109030.0,109020.0,0.27174889]
[1756476391175,0.001,109030.0,109020.0,0.27374889]
[1756476391408,0.19255709,109060.0,109020.0,0.27374889]
[1756476391636,0.1834196,109040.0,109020.0,0.18545242]
[1756476391878,1.50116659,109050.0,109020.0,0.18545257]
[1756476392136,0.33530608,109050.0,109030.0,0.18343426]
[1756476392376,0.18343575,109030.0,109020.0,0.18345257]
[1756476392606,0.30905474,109030.0,109020.0,0.003]
[1756476393537,0.25399575,109030.0,109020.0,0.003]
[1756476393956,1.56321157,109030.0,109020.0,0.003]
[1756476394567,1.50815258,109030.0,109020.0,0.003]
[1756476394779,0.25399575,109030.0,109020.0,0.003]
[1756476394997,0.07056,109030.0,109020.0,0.27474889]
[1756476395206,0.07070336,109030.0,109020.0,0.003]
[1756476395408,0.25413911,109030.0,109020.0,0.003]
[1756476395614,0.25413911,109030.0,109020.0,0.27404204]
[1756476395615,0.07070336,109030.0,109020.0,0.27404204]
[1756476395820,0.07070336,109030.0,109020.0,0.27174889]
[1756476395821,0.00014336,109030.0,109020.0,0.27174889]
[1756476396899,0.00014336,109030.0,109020.0,0.001]
[1756476397109,0.18357911,109030.0,109020.0,0.001]
[1756476397326,0.24686114,109030.0,109020.0,0.001]
[1756476397533,6.84639613,109030.0,109020.0,0.001]
[1756476397947,6.86283707,109030.0,109020.0,0.001]
[1756476398153,1.44304929,109000.0,108970.0,0.0721143]
[1756476398359,1.5310244,109000.0,108980.0,0.1835195]
[1756476398569,0.27148941,109000.0,108980.0,0.18351991]
[1756476398774,0.26228917,109000.0,108980.0,0.27181623]
[1756476399030,0.0788008,109000.0,108990.0,0.18350307]
[1756476399242,0.26228742,109000.0,108990.0,0.18350307]
[1756476399447,0.26228742,109000.0,108980.0,0.27181623]
[1756476399681,0.18350307,108990.0,108980.0,0.27181623]
[1756476399913,0.18348393,109010.0,108990.0,0.18350307]
[1756476400126,0.2541396,109030.0,109010.0,0.18346891]
[1756476400333,0.00826697,109030.0,109020.0,0.27404204]
[1756476400544,0.00826697,109030.0,109020.0,0.27174889]
[1756476401174,0.00826697,109030.0,109020.0,1.53128388]
[1756476401379,0.00841033,109030.0,109020.0,0.27174889]
[1756476402011,0.19184608,109030.0,109020.0,0.08829632]
[1756476402218,0.18345257,109020.0,109000.0,0.19266054]
[1756476402440,0.1834694,109010.0,108990.0,0.19267822]
[1756476402660,0.1834694,109010.0,108990.0,0.27179939]
[1756476402889,0.18348623,109000.0,108990.0,0.08829632]
[1756476403121,0.18350307,108990.0,108970.0,0.19271358]
[1756476403340,0.18350307,108990.0,108970.0,0.2810099]
[1756476403631,0.18350307,108990.0,108980.0,0.18351991]
[1756476403855,0.1835378,108970.0,108950.0,0.25560872]
[1756476404066,1.44767692,108980.0,108950.0,0.08829632]